[Event "Rapid Tournament (RAP)"]
[Site "Biel, Switzerland"]
[Date "2026.07.12"]
[Round "5.4"]
[White "Aronyak, Ghosh"]
[Black "Dong, Hongfu"]
[Result "1/2-1/2"]
[TimeControl "15 + 5"]
[WhiteTitle "-"]
[BlackTitle "-"]
[WhiteFideId "25072846"]
[BlackFideId "8626960"]
[WhiteElo "2482"]
[BlackElo "2271"]

1. Nf3 {[%clk 00:15:08]} {[%emt 00:00:02]} Nf6 {[%clk 00:15:09]} {[%emt
00:00:01]} 2. g3 {[%clk 00:15:11]} {[%emt 00:00:01]} c5 {[%clk 00:15:12]}
{[%emt 00:00:02]} 3. Bg2 {[%clk 00:14:47]} {[%emt 00:00:30]} Nc6 {[%clk
00:15:15]} {[%emt 00:00:02]} 4. O-O {[%clk 00:14:47]} {[%emt 00:00:05]} e5
{[%clk 00:15:18]} {[%emt 00:00:02]} 5. e4 {[%clk 00:14:43]} {[%emt 00:00:09]}
d6 {[%clk 00:15:20]} {[%emt 00:00:04]} 6. d3 {[%clk 00:14:42]} {[%emt
00:00:06]} g6 {[%clk 00:15:23]} {[%emt 00:00:02]} 7. c4 {[%clk 00:14:40]}
{[%emt 00:00:06]} h5 {[%clk 00:15:10]} {[%emt 00:00:18]} 8. Nc3 {[%clk
00:14:12]} {[%emt 00:00:33]} Bg4 {[%clk 00:14:35]} {[%emt 00:00:40]} 9. h3
{[%clk 00:13:38]} {[%emt 00:00:38]} Bxf3 {[%clk 00:14:23]} {[%emt 00:00:17]} 10.
Qxf3 {[%clk 00:13:41]} {[%emt 00:00:02]} Nd4 {[%clk 00:14:11]} {[%emt
00:00:18]} 11. Qd1 {[%clk 00:13:43]} {[%emt 00:00:03]} Bh6 {[%clk 00:14:07]}
{[%emt 00:00:09]} 12. Bxh6 {[%clk 00:11:18]} {[%emt 00:02:29]} Rxh6 {[%clk
00:14:10]} {[%emt 00:00:02]} 13. Qd2 {[%clk 00:11:12]} {[%emt 00:00:11]} Rh7
{[%clk 00:11:01]} {[%emt 00:03:14]} 14. h4 {[%clk 00:10:13]} {[%emt 00:01:04]}
Nd7 {[%clk 00:08:19]} {[%emt 00:02:48]} 15. Nd5 {[%clk 00:09:04]} {[%emt
00:01:14]} Nf6 {[%clk 00:07:35]} {[%emt 00:00:50]} 16. Nc3 {[%clk 00:08:19]}
{[%emt 00:00:50]} Nd7 {[%clk 00:07:38]} {[%emt 00:00:02]} 17. f4 {[%clk
00:07:13]} {[%emt 00:01:10]} exf4 {[%clk 00:06:49]} {[%emt 00:00:54]} 18. Qxf4
{[%clk 00:06:38]} {[%emt 00:00:40]} Ne5 {[%clk 00:06:45]} {[%emt 00:00:09]} 19.
Qd2 {[%clk 00:06:33]} {[%emt 00:00:10]} Kf8 {[%clk 00:05:28]} {[%emt 00:01:23]}
20. Nd5 {[%clk 00:06:18]} {[%emt 00:00:19]} Kg7 {[%clk 00:05:32]} {[%emt
00:00:01]} 21. Rf2 {[%clk 00:05:59]} {[%emt 00:00:24]} Ng4 {[%clk 00:01:54]}
{[%emt 00:03:43]} 22. Rf4 {[%clk 00:05:57]} {[%emt 00:00:06]} Ne6 {[%clk
00:01:47]} {[%emt 00:00:12]} 23. Qc3+ {[%clk 00:05:42]} {[%emt 00:00:20]} Kf8
{[%clk 00:01:31]} {[%emt 00:00:21]} 24. Rff1 {[%clk 00:04:12]} {[%emt
00:01:34]} Nc7 {[%clk 00:01:35]} {[%emt 00:00:01]} 25. Nf6 {[%clk 00:03:19]}
{[%emt 00:00:58]} Nxf6 {[%clk 00:01:39]} {[%emt 00:00:01]} 26. Rxf6 {[%clk
00:03:23]} {[%emt 00:00:01]} Ne8 {[%clk 00:01:43]} 27. Rf3 {[%clk 00:03:16]}
{[%emt 00:00:12]} Qe7 {[%clk 00:01:48]} {[%emt 00:00:01]} 28. Raf1 {[%clk
00:02:54]} {[%emt 00:00:27]} Qe5 {[%clk 00:01:46]} {[%emt 00:00:07]} 29. Bh3
{[%clk 00:02:56]} {[%emt 00:00:02]} Kg8 {[%clk 00:01:06]} {[%emt 00:00:46]} 30.
Kg2 {[%clk 00:02:22]} {[%emt 00:00:39]} 1/2-1/2

[Event "Rapid Tournament (RAP)"]
[Site "Biel, Switzerland"]
[Date "2026.07.12"]
[Round "5.5"]
[White "Cao, Qingfeng"]
[Black "Ghosh, Diptayan"]
[Result "1-0"]
[TimeControl "15 + 5"]
[WhiteTitle "-"]
[BlackTitle "-"]
[WhiteFideId "8627568"]
[BlackFideId "5045207"]
[WhiteElo "2265"]
[BlackElo "2480"]

1. d4 {[%clk 00:15:09]} {[%emt 00:00:02]} d5 {[%clk 00:15:08]} 2. c4 {[%clk
00:15:12]} {[%emt 00:00:01]} e6 {[%clk 00:15:12]} {[%emt 00:00:02]} 3. Nf3
{[%clk 00:15:15]} {[%emt 00:00:01]} Nf6 {[%clk 00:15:14]} {[%emt 00:00:03]} 4.
g3 {[%clk 00:15:18]} {[%emt 00:00:02]} dxc4 {[%clk 00:15:15]} {[%emt 00:00:04]}
5. Bg2 {[%clk 00:15:21]} {[%emt 00:00:02]} Nbd7 {[%clk 00:15:19]} {[%emt
00:00:02]} 6. O-O {[%clk 00:14:56]} {[%emt 00:00:30]} c6 {[%clk 00:15:22]}
{[%emt 00:00:02]} 7. a4 {[%clk 00:14:33]} {[%emt 00:00:28]} b6 {[%clk
00:15:26]} {[%emt 00:00:01]} 8. Nfd2 {[%clk 00:13:36]} {[%emt 00:01:01]} Ba6
{[%clk 00:15:29]} {[%emt 00:00:02]} 9. Bxc6 {[%clk 00:13:38]} {[%emt 00:00:03]}
Rc8 {[%clk 00:15:32]} {[%emt 00:00:02]} 10. Bb5 {[%clk 00:13:40]} {[%emt
00:00:02]} Bb7 {[%clk 00:15:34]} {[%emt 00:00:03]} 11. Nc3 {[%clk 00:12:59]}
{[%emt 00:00:46]} h5 {[%clk 00:15:37]} {[%emt 00:00:02]} 12. Nxc4 {[%clk
00:12:07]} {[%emt 00:00:57]} a6 {[%clk 00:14:49]} {[%emt 00:00:53]} 13. Bxd7+
{[%clk 00:12:09]} {[%emt 00:00:03]} Nxd7 {[%clk 00:14:52]} {[%emt 00:00:02]} 14.
Qd3 {[%clk 00:11:53]} {[%emt 00:00:20]} h4 {[%clk 00:14:41]} {[%emt 00:00:16]}
15. Bf4 {[%clk 00:11:47]} {[%emt 00:00:11]} hxg3 {[%clk 00:12:27]} {[%emt
00:02:19]} 16. Bxg3 {[%clk 00:10:14]} {[%emt 00:01:38]} Bb4 {[%clk 00:11:11]}
{[%emt 00:01:22]} 17. f3 {[%clk 00:09:28]} {[%emt 00:00:51]} Nf6 {[%clk
00:10:35]} {[%emt 00:00:41]} 18. Rad1 {[%clk 00:07:44]} {[%emt 00:01:49]} Nh5
{[%clk 00:07:36]} {[%emt 00:03:04]} 19. Ne5 {[%clk 00:05:46]} {[%emt 00:02:03]}
Nxg3 {[%clk 00:06:37]} {[%emt 00:01:05]} 20. hxg3 {[%clk 00:05:50]} {[%emt
00:00:02]} Qg5 {[%clk 00:06:35]} {[%emt 00:00:07]} 21. Kg2 {[%clk 00:05:33]}
{[%emt 00:00:21]} f6 {[%clk 00:05:05]} {[%emt 00:01:35]} 22. Qg6+ {[%clk
00:05:27]} {[%emt 00:00:11]} Qxg6 {[%clk 00:05:09]} {[%emt 00:00:02]} 23. Nxg6
{[%clk 00:05:31]} Rh6 {[%clk 00:05:10]} {[%emt 00:00:04]} 24. Nf4 {[%clk
00:05:33]} {[%emt 00:00:03]} Kf7 {[%clk 00:04:44]} {[%emt 00:00:31]} 25. Rc1
{[%clk 00:05:23]} {[%emt 00:00:15]} Rch8 {[%clk 00:04:20]} {[%emt 00:00:30]} 26.
Kf2 {[%clk 00:04:50]} {[%emt 00:00:38]} Rh2+ {[%clk 00:04:19]} {[%emt
00:00:06]} 27. Ke3 {[%clk 00:04:35]} {[%emt 00:00:20]} g5 {[%clk 00:03:52]}
{[%emt 00:00:32]} 28. Nd3 {[%clk 00:04:37]} {[%emt 00:00:04]} Bd6 {[%clk
00:03:56]} {[%emt 00:00:01]} 29. Ne4 {[%clk 00:04:14]} {[%emt 00:00:28]} Bb8
{[%clk 00:03:34]} {[%emt 00:00:26]} 30. Ndf2 {[%clk 00:03:03]} {[%emt
00:01:17]} Rg2 {[%clk 00:00:59]} {[%emt 00:02:40]} 31. Rh1 {[%clk 00:02:29]}
{[%emt 00:00:39]} Rxh1 {[%clk 00:01:03]} {[%emt 00:00:01]} 32. Rxh1 {[%clk
00:02:31]} {[%emt 00:00:02]} Kg7 {[%clk 00:01:07]} {[%emt 00:00:01]} 33. Rc1
{[%clk 00:01:36]} {[%emt 00:00:59]} Kg6 {[%clk 00:00:46]} {[%emt 00:00:26]} 34.
Nd3 {[%clk 00:00:51]} {[%emt 00:00:50]} f5 {[%clk 00:00:41]} {[%emt 00:00:10]}
35. Nd2 {[%clk 00:00:51]} {[%emt 00:00:05]} Bxg3 {[%clk 00:00:38]} {[%emt
00:00:08]} 36. Nc4 {[%clk 00:00:51]} {[%emt 00:00:05]} Kf6 {[%clk 00:00:33]}
{[%emt 00:00:10]} 37. Nce5 {[%clk 00:00:52]} {[%emt 00:00:04]} g4 {[%clk
00:00:18]} {[%emt 00:00:20]} 38. f4 {[%clk 00:00:31]} {[%emt 00:00:26]} Bxf4+
{[%clk 00:00:10]} {[%emt 00:00:13]} 39. Nxf4 {[%clk 00:00:32]} {[%emt
00:00:05]} Rg3+ {[%clk 00:00:14]} 40. Kf2 {[%clk 00:00:32]} {[%emt 00:00:04]}
Rb3 {[%clk 00:00:18]} {[%emt 00:00:01]} 41. Rc3 {[%clk 00:00:20]} {[%emt
00:00:17]} Rxb2 {[%clk 00:00:16]} {[%emt 00:00:07]} 42. Rc7 {[%clk 00:00:24]}
Be4 {[%clk 00:00:19]} {[%emt 00:00:03]} 43. Rf7+ {[%clk 00:00:26]} {[%emt
00:00:03]} Kg5 {[%clk 00:00:23]} {[%emt 00:00:01]} 44. Nxe6+ {[%clk 00:00:29]}
{[%emt 00:00:02]} Kh6 {[%clk 00:00:27]} 45. Rf6+ {[%clk 00:00:25]} {[%emt
00:00:10]} Kh5 {[%clk 00:00:29]} {[%emt 00:00:03]} 46. Ng7+ {[%clk 00:00:25]}
{[%emt 00:00:04]} Kh4 {[%clk 00:00:30]} {[%emt 00:00:04]} 47. Rh6+ {[%clk
00:00:23]} {[%emt 00:00:07]} Kg5 {[%clk 00:00:35]} 48. Nf7+ {[%clk 00:00:19]}
{[%emt 00:00:09]} Kf4 {[%clk 00:00:38]} {[%emt 00:00:02]} 49. Ne6# {[%clk
00:00:23]} {[%emt 00:00:01]} 1-0

[Event "Rapid Tournament (RAP)"]
[Site "Biel, Switzerland"]
[Date "2026.07.12"]
[Round "5.6"]
[White "Xu, Chang(Cq)"]
[Black "Cherniaev, Alexander"]
[Result "0-1"]
[TimeControl "15 + 5"]
[WhiteTitle "-"]
[BlackTitle "-"]
[WhiteFideId "8641757"]
[BlackFideId "4117301"]
[WhiteElo "2082"]
[BlackElo "2299"]

1. e4 {[%clk 00:15:07]} {[%emt 00:00:02]} c5 {[%clk 00:15:09]} {[%emt
00:00:02]} 2. Nf3 {[%clk 00:15:10]} {[%emt 00:00:02]} Nc6 {[%clk 00:15:12]}
{[%emt 00:00:02]} 3. Bb5 {[%clk 00:15:13]} {[%emt 00:00:02]} e6 {[%clk
00:15:15]} {[%emt 00:00:03]} 4. O-O {[%clk 00:15:15]} {[%emt 00:00:03]} Nge7
{[%clk 00:15:19]} {[%emt 00:00:02]} 5. Re1 {[%clk 00:15:18]} {[%emt 00:00:02]}
Nd4 {[%clk 00:15:21]} {[%emt 00:00:03]} 6. Nxd4 {[%clk 00:15:11]} {[%emt
00:00:12]} cxd4 {[%clk 00:15:25]} {[%emt 00:00:02]} 7. c3 {[%clk 00:15:12]}
{[%emt 00:00:03]} a6 {[%clk 00:15:29]} {[%emt 00:00:02]} 8. Ba4 {[%clk
00:14:59]} {[%emt 00:00:18]} b5 {[%clk 00:15:32]} {[%emt 00:00:02]} 9. Bb3
{[%clk 00:14:38]} {[%emt 00:00:26]} Nc6 {[%clk 00:15:35]} {[%emt 00:00:02]} 10.
d3 {[%clk 00:14:25]} {[%emt 00:00:17]} Bb7 {[%clk 00:15:27]} {[%emt 00:00:14]}
11. Nd2 {[%clk 00:14:19]} {[%emt 00:00:10]} Bc5 {[%clk 00:15:29]} {[%emt
00:00:04]} 12. Qg4 {[%clk 00:12:14]} {[%emt 00:02:10]} Qf6 {[%clk 00:15:28]}
{[%emt 00:00:07]} 13. Nf3 {[%clk 00:12:00]} {[%emt 00:00:19]} Qg6 {[%clk
00:14:54]} {[%emt 00:00:39]} 14. Qxg6 {[%clk 00:11:22]} {[%emt 00:00:42]} hxg6
{[%clk 00:14:56]} {[%emt 00:00:04]} 15. Bd2 {[%clk 00:11:08]} {[%emt 00:00:18]}
d6 {[%clk 00:11:00]} {[%emt 00:04:02]} 16. h3 {[%clk 00:10:44]} {[%emt
00:00:28]} Kd7 {[%clk 00:10:25]} {[%emt 00:00:41]} 17. a3 {[%clk 00:10:12]}
{[%emt 00:00:37]} f6 {[%clk 00:10:23]} {[%emt 00:00:08]} 18. Kf1 {[%clk
00:09:28]} {[%emt 00:00:47]} g5 {[%clk 00:10:27]} {[%emt 00:00:02]} 19. Ke2
{[%clk 00:09:22]} {[%emt 00:00:11]} Rac8 {[%clk 00:10:30]} {[%emt 00:00:02]} 20.
Rec1 {[%clk 00:09:02]} {[%emt 00:00:24]} Bb6 {[%clk 00:10:27]} {[%emt
00:00:09]} 21. Rc2 {[%clk 00:08:01]} {[%emt 00:01:06]} dxc3 {[%clk 00:09:34]}
{[%emt 00:00:58]} 22. bxc3 {[%clk 00:07:41]} {[%emt 00:00:25]} Rc7 {[%clk
00:08:56]} {[%emt 00:00:44]} 23. Rca2 {[%clk 00:07:20]} {[%emt 00:00:25]} Na5
{[%clk 00:08:46]} {[%emt 00:00:15]} 24. Bd1 {[%clk 00:06:29]} {[%emt 00:00:55]}
d5 {[%clk 00:08:31]} {[%emt 00:00:21]} 25. e5 {[%clk 00:06:13]} {[%emt
00:00:20]} d4 {[%clk 00:07:54]} {[%emt 00:00:42]} 26. cxd4 {[%clk 00:04:12]}
{[%emt 00:02:06]} Bxf3+ {[%clk 00:07:49]} {[%emt 00:00:11]} 27. Kxf3 {[%clk
00:03:48]} {[%emt 00:00:28]} Nc6 {[%clk 00:07:52]} {[%emt 00:00:02]} 28. Be3
{[%clk 00:02:46]} {[%emt 00:01:06]} Nxd4+ {[%clk 00:07:47]} {[%emt 00:00:10]}
29. Bxd4 {[%clk 00:02:28]} {[%emt 00:00:23]} Bxd4 {[%clk 00:07:51]} {[%emt
00:00:02]} 30. Rb1 {[%clk 00:02:32]} {[%emt 00:00:01]} Bxe5 {[%clk 00:07:24]}
{[%emt 00:00:32]} 31. a4 {[%clk 00:02:32]} {[%emt 00:00:05]} Rb8 {[%clk
00:07:12]} {[%emt 00:00:16]} 32. axb5 {[%clk 00:01:57]} {[%emt 00:00:39]} axb5
{[%clk 00:06:44]} {[%emt 00:00:34]} 33. Bb3 {[%clk 00:01:39]} {[%emt 00:00:23]}
Rb6 {[%clk 00:06:25]} {[%emt 00:00:24]} 34. Ra8 {[%clk 00:01:16]} {[%emt
00:00:28]} Bd4 {[%clk 00:05:29]} {[%emt 00:01:01]} 35. Rg8 {[%clk 00:01:05]}
{[%emt 00:00:16]} f5 {[%clk 00:04:58]} {[%emt 00:00:36]} 36. g4 {[%clk
00:00:28]} {[%emt 00:00:42]} Rc3 {[%clk 00:04:56]} {[%emt 00:00:08]} 37. Ke2
{[%clk 00:00:31]} Ra6 {[%clk 00:04:56]} {[%emt 00:00:05]} 38. Rb8 {[%clk
00:00:29]} {[%emt 00:00:07]} Rc5 {[%clk 00:04:53]} {[%emt 00:00:08]} 39. Rb7+
{[%clk 00:00:27]} {[%emt 00:00:07]} Kd6 {[%clk 00:04:50]} {[%emt 00:00:08]} 40.
Rb8 {[%clk 00:00:25]} {[%emt 00:00:07]} Ke5 {[%clk 00:04:41]} {[%emt 00:00:13]}
41. Kf3 {[%clk 00:00:24]} {[%emt 00:00:07]} Kf6 {[%clk 00:03:57]} {[%emt
00:00:50]} 42. Rf8+ {[%clk 00:00:22]} {[%emt 00:00:06]} Ke7 {[%emt 00:00:08]}
43. Rb8 {[%clk 00:00:23]} Rd6 {[%clk 00:03:54]} {[%emt 00:00:08]} 44. Rb7+
{[%clk 00:00:14]} {[%emt 00:00:15]} Rd7 {[%clk 00:03:35]} {[%emt 00:00:24]} 45.
Rb6 {[%clk 00:00:16]} {[%emt 00:00:03]} Re5 {[%clk 00:03:25]} {[%emt 00:00:15]}
46. Rb8 {[%clk 00:00:19]} {[%emt 00:00:01]} Ba7 {[%clk 00:03:20]} {[%emt
00:00:09]} 47. Ra8 {[%clk 00:00:09]} {[%emt 00:00:15]} Rxd3+ {[%clk 00:03:20]}
{[%emt 00:00:05]} 48. Kg2 {[%clk 00:00:11]} {[%emt 00:00:03]} Rd7 {[%clk
00:03:14]} {[%emt 00:00:12]} 49. Bd1 {[%clk 00:00:09]} {[%emt 00:00:06]} Bc5
{[%clk 00:03:07]} {[%emt 00:00:12]} 50. Bf3 {[%clk 00:00:07]} {[%emt 00:00:06]}
b4 {[%clk 00:03:11]} {[%emt 00:00:01]} 51. Rg8 {[%clk 00:00:09]} {[%emt
00:00:03]} Kf7 {[%clk 00:03:12]} {[%emt 00:00:04]} 52. Rb8 {[%clk 00:00:10]}
{[%emt 00:00:03]} Rd2 {[%clk 00:03:07]} {[%emt 00:00:10]} 53. Rf1 {[%clk
00:00:13]} {[%emt 00:00:02]} g6 {[%clk 00:03:04]} {[%emt 00:00:08]} 54. Rb7+
{[%clk 00:00:17]} {[%emt 00:00:02]} Kf6 {[%clk 00:03:09]} 55. Rb8 {[%clk
00:00:11]} {[%emt 00:00:11]} Be7 {[%clk 00:03:12]} {[%emt 00:00:01]} 56. Rb7
{[%clk 00:00:12]} {[%emt 00:00:04]} Ra5 {[%clk 00:03:12]} {[%emt 00:00:05]} 57.
Rc1 {[%clk 00:00:13]} {[%emt 00:00:04]} Raa2 {[%clk 00:03:14]} {[%emt
00:00:04]} 58. Rf1 {[%clk 00:00:07]} {[%emt 00:00:10]} Bc5 {[%clk 00:03:18]}
{[%emt 00:00:01]} 59. Kg1 {[%clk 00:00:06]} {[%emt 00:00:06]} Bxf2+ {[%clk
00:03:20]} {[%emt 00:00:02]} 60. Kh1 {[%clk 00:00:08]} {[%emt 00:00:04]} Bc5
{[%clk 00:03:22]} {[%emt 00:00:03]} 0-1

[Event "Rapid Tournament (RAP)"]
[Site "Biel, Switzerland"]
[Date "2026.07.12"]
[Round "5.7"]
[White "Rohrer, Christophe"]
[Black "Amonatov, Farrukh"]
[Result "1/2-1/2"]
[TimeControl "15 + 5"]
[WhiteTitle "-"]
[BlackTitle "-"]
[WhiteFideId "1326546"]
[BlackFideId "14700077"]
[WhiteElo "2202"]
[BlackElo "2593"]

1. e4 {[%clk 00:15:07]} {[%emt 00:00:04]} c5 {[%clk 00:15:09]} 2. Nf3 {[%clk
00:15:10]} {[%emt 00:00:02]} d6 {[%clk 00:15:13]} {[%emt 00:00:01]} 3. Bc4
{[%clk 00:15:13]} {[%emt 00:00:02]} Nf6 {[%clk 00:15:16]} {[%emt 00:00:02]} 4.
d3 {[%clk 00:15:16]} {[%emt 00:00:02]} e6 {[%clk 00:15:19]} {[%emt 00:00:01]} 5.
O-O {[%clk 00:15:06]} {[%emt 00:00:16]} Be7 {[%clk 00:15:23]} {[%emt 00:00:01]}
6. a4 {[%clk 00:14:40]} {[%emt 00:00:32]} Nc6 {[%clk 00:15:24]} {[%emt
00:00:03]} 7. Nbd2 {[%clk 00:14:16]} {[%emt 00:00:29]} O-O {[%clk 00:15:24]}
{[%emt 00:00:05]} 8. Re1 {[%clk 00:13:54]} {[%emt 00:00:27]} a6 {[%clk
00:15:19]} {[%emt 00:00:12]} 9. Bb3 {[%clk 00:13:36]} {[%emt 00:00:22]} Rb8
{[%clk 00:15:11]} {[%emt 00:00:12]} 10. c3 {[%clk 00:13:37]} {[%emt 00:00:04]}
b5 {[%clk 00:15:14]} {[%emt 00:00:03]} 11. axb5 {[%clk 00:13:40]} {[%emt
00:00:02]} axb5 {[%clk 00:15:18]} 12. d4 {[%clk 00:13:42]} {[%emt 00:00:03]} c4
{[%clk 00:15:13]} {[%emt 00:00:10]} 13. Bc2 {[%clk 00:13:44]} {[%emt 00:00:03]}
e5 {[%clk 00:15:16]} {[%emt 00:00:01]} 14. d5 {[%clk 00:13:03]} {[%emt
00:00:47]} Na5 {[%clk 00:15:19]} {[%emt 00:00:01]} 15. Nf1 {[%clk 00:12:40]}
{[%emt 00:00:28]} Nb7 {[%clk 00:15:08]} {[%emt 00:00:17]} 16. Be3 {[%clk
00:12:11]} {[%emt 00:00:34]} Qc7 {[%clk 00:13:50]} {[%emt 00:01:22]} 17. h3
{[%clk 00:10:32]} {[%emt 00:01:44]} Nc5 {[%clk 00:13:51]} {[%emt 00:00:04]} 18.
N1d2 {[%clk 00:10:01]} {[%emt 00:00:37]} g6 {[%clk 00:13:40]} {[%emt 00:00:15]}
19. Qe2 {[%clk 00:09:47]} {[%emt 00:00:19]} Bd7 {[%clk 00:12:43]} {[%emt
00:01:02]} 20. Nh2 {[%clk 00:08:47]} {[%emt 00:01:05]} Nh5 {[%clk 00:12:08]}
{[%emt 00:00:40]} 21. Ng4 {[%clk 00:06:40]} {[%emt 00:02:13]} Nf4 {[%clk
00:11:20]} {[%emt 00:00:53]} 22. Bxf4 {[%clk 00:06:25]} {[%emt 00:00:20]} exf4
{[%clk 00:11:23]} 23. Nh2 {[%clk 00:05:32]} {[%emt 00:00:58]} Bf6 {[%clk
00:10:39]} {[%emt 00:00:49]} 24. Nhf3 {[%clk 00:04:27]} {[%emt 00:01:11]} b4
{[%clk 00:10:05]} {[%emt 00:00:38]} 25. Nd4 {[%clk 00:04:09]} {[%emt 00:00:24]}
bxc3 {[%clk 00:07:03]} {[%emt 00:03:07]} 26. bxc3 {[%clk 00:04:12]} {[%emt
00:00:03]} Nb3 {[%clk 00:07:06]} 27. Bxb3 {[%clk 00:02:19]} {[%emt 00:01:59]}
Bxd4 {[%clk 00:05:10]} {[%emt 00:02:00]} 28. cxd4 {[%clk 00:01:44]} {[%emt
00:00:40]} cxb3 {[%clk 00:05:14]} {[%emt 00:00:01]} 29. Rab1 {[%clk 00:00:51]}
{[%emt 00:00:59]} b2 {[%clk 00:04:51]} {[%emt 00:00:27]} 30. e5 {[%clk
00:00:31]} {[%emt 00:00:26]} Bf5 {[%clk 00:04:18]} {[%emt 00:00:37]} 31. Ne4
{[%clk 00:00:33]} {[%emt 00:00:04]} dxe5 {[%clk 00:04:21]} {[%emt 00:00:01]} 32.
Rxb2 {[%emt 00:00:20]} exd4 {[%clk 00:04:23]} 33. Rxb8 {[%clk 00:00:11]} {[%emt
00:00:16]} Rxb8 {[%clk 00:04:17]} {[%emt 00:00:11]} 34. d6 {[%clk 00:00:15]}
{[%emt 00:00:01]} Qa5 {[%clk 00:04:18]} {[%emt 00:00:03]} 35. Nf6+ {[%clk
00:00:19]} {[%emt 00:00:02]} Kg7 {[%clk 00:04:22]} 36. Qe7 {[%clk 00:00:22]}
{[%emt 00:00:02]} d3 {[%clk 00:03:43]} {[%emt 00:00:43]} 37. Ne8+ {[%clk
00:00:23]} {[%emt 00:00:05]} Kg8 {[%clk 00:00:39]} {[%emt 00:03:09]} 38. Nf6+
{[%clk 00:00:26]} {[%emt 00:00:03]} Kg7 {[%clk 00:00:43]} 39. Ne8+ {[%clk
00:00:30]} Kg8 {[%clk 00:00:17]} {[%emt 00:00:31]} 40. Nf6+ {[%clk 00:00:33]}
{[%emt 00:00:01]} Kg7 {[%clk 00:00:20]} {[%emt 00:00:02]} 41. Ne8+ {[%clk
00:00:37]} {[%emt 00:00:01]} Kg8 {[%clk 00:00:05]} {[%emt 00:00:14]} 1/2-1/2